bitfinex/quotes_ETHUSD_20251212
["timestamp","ask_amount","ask_price","bid_price","bid_amount"]
[1765546515295,0.4928,3246.0,3245.6,3.90410753]
[1765546515706,0.4928,3246.0,3245.6,6.98520193]
[1765546515878,0.4928,3246.0,3245.6,7.44470193]
[1765546516204,0.4928,3246.0,3245.6,4.36360753]
[1765546516407,0.4928,3246.0,3245.6,7.44470193]
[1765546517807,0.4928,3246.2,3245.6,7.44470193]
[1765546518804,0.2392,3245.7,3245.6,3.0810944]
[1765546520411,0.181,3245.9,3245.6,3.0810944]
[1765546520612,0.6497,3245.9,3245.5,3.08118807]
[1765546521109,0.4687,3245.8,3245.5,3.08118807]
[1765546522612,3.08118933,3245.5,3245.4,0.92509933]
[1765546522910,3.08118933,3245.5,3244.7,3.08191124]
[1765546522911,6.54680759,3245.5,3244.7,3.08191124]
[1765546523107,0.4687,3245.4,3244.7,3.08191124]
[1765546523315,0.4687,3245.4,3244.8,3.08183653]
[1765546523499,0.4687,3245.4,3244.7,3.08190051]
[1765546523839,0.4687,3245.4,3245.0,3.08160109]
[1765546524608,3.54980304,3245.6,3244.9,3.08175906]
[1765546524783,3.54980304,3245.6,3244.9,3.58175906]
[1765546525184,0.6497,3245.9,3244.9,7.39962907]
[1765546525483,3.08093195,3245.8,3245.0,0.5]
[1765546525683,3.54963195,3245.8,3245.0,0.5]
[1765546525886,0.181,3245.9,3245.1,5.893872]
[1765546526080,0.1954,3246.1,3245.8,0.4756]
[1765546526514,0.6641,3246.1,3245.5,0.5]
[1765546526925,0.6641,3246.1,3245.6,3.0810944]
[1765546527127,0.6641,3246.1,3245.5,3.58115743]
[1765546527964,0.6641,3246.1,3245.5,6.66234676]
[1765546528321,0.6641,3246.1,3245.5,7.89833864]
[1765546529149,0.487,3246.3,3245.6,0.5]
[1765546529307,0.9557,3246.3,3245.6,0.5]
[1765546529509,0.4687,3246.3,3245.7,5.697572]
[1765546529748,0.002,3246.5,3245.7,5.697572]
[1765546529904,0.002,3246.5,3245.8,1.1197572]
[1765546530249,0.4707,3246.5,3245.8,1.1197572]
[1765546531647,3.55095346,3246.5,3245.9,3.08080963]
[1765546532015,0.4687,3246.4,3245.9,3.08080963]
[1765546540442,3.54904243,3246.4,3245.9,3.08080963]
[1765546541143,3.08226672,3246.5,3245.9,3.08080963]
[1765546542113,0.5,3246.4,3245.9,3.08080963]
[1765546543031,3.58033711,3246.4,3245.9,3.08080963]
[1765546543320,0.5,3246.3,3245.9,3.08080963]
[1765546544545,3.08224025,3246.5,3245.8,0.6197572]
[1765546544844,0.5,3246.4,3245.8,6.64966006]
[1765546545619,0.5,3246.4,3245.8,3.56875551]
[1765546546059,0.5,3246.4,3245.7,3.56798007]
[1765546546848,0.2213,3245.8,3245.7,3.56798007]
[1765546547446,0.2213,3245.8,3245.7,3.08098007]
[1765546547836,0.7213,3245.8,3245.7,3.08098007]
[1765546548041,0.5,3246.1,3245.7,3.57778007]
[1765546548242,0.5,3246.1,3245.7,0.4968]
[1765546548459,0.2264,3245.8,3245.5,3.56908822]
[1765546548747,0.0023,3245.6,3245.3,4.00645111]
[1765546548956,0.2242,3245.5,3245.0,0.9749]
[1765546549247,0.2242,3245.5,3245.2,3.08142593]
[1765546549451,0.4995,3245.4,3245.1,3.08149902]
[1765546549649,0.4995,3245.4,3245.0,3.5686469]
[1765546550236,0.487,3245.7,3245.1,3.08155192]
[1765546550432,0.5,3245.6,3245.3,3.0813225]
[1765546550636,0.487,3245.7,3245.3,3.0813225]
[1765546550835,0.987,3245.7,3245.2,3.08147417]
[1765546553030,0.987,3245.7,3245.2,3.56937417]
[1765546553230,0.987,3245.7,3245.2,0.4879]
[1765546554148,0.487,3245.7,3245.2,0.4879]
[1765546554923,0.2264,3245.3,3244.7,1.41226481]
[1765546555129,0.2264,3245.3,3244.8,0.4879]
[1765546555422,0.2264,3245.3,3244.9,0.19001648]
[1765546555627,0.7237,3245.3,3244.8,3.08179294]
[1765546555827,0.7237,3245.3,3244.9,3.08175709]
[1765546556236,0.4973,3245.2,3244.9,3.08175709]
[1765546556642,0.005,3245.0,3244.9,3.08175709]
[1765546557159,0.005,3245.0,3244.8,6.16370679]
[1765546557459,0.5,3245.5,3244.9,0.9847]
[1765546559053,0.5,3245.5,3244.9,0.4968]
[1765546559361,0.5,3245.5,3244.8,3.08185275]
[1765546559853,3.08128427,3245.4,3244.8,3.08185275]
[1765546560155,3.08128427,3245.4,3244.7,3.56890205]
[1765546560356,0.5,3245.3,3244.7,3.56890205]
[1765546560556,0.5,3245.3,3244.7,6.65085107]
[1765546561257,0.5,3245.3,3244.7,7.13875107]
[1765546562043,6.16224404,3245.6,3244.8,0.4879]
[1765546562234,3.93792319,3245.6,3244.8,0.4879]
[1765546563258,0.5,3245.5,3244.8,0.4879]
[1765546564555,3.08075991,3246.0,3245.5,0.4968]
[1765546564556,3.08074558,3246.0,3245.5,0.4968]
[1765546564859,0.35807456,3245.9,3245.6,0.4968]
[1765546565031,3.08071784,3246.0,3245.6,0.4968]
[1765546565229,0.4878,3245.7,3245.2,0.6711]
[1765546565457,0.4878,3245.7,3245.1,0.487]
[1765546565642,0.2385,3245.6,3245.1,0.487]
[1765546566561,0.2385,3245.6,3245.2,3.08147417]
[1765546566760,0.2385,3245.6,3245.2,3.74648151]
[1765546568267,3.08071784,3246.0,3245.2,3.74648151]
[1765546568268,0.4928,3246.0,3245.5,0.474]
[1765546568437,3.56765634,3246.1,3245.5,0.474]
[1765546568438,0.4928,3245.9,3245.5,0.474]
[1765546569257,0.4928,3245.9,3245.5,3.55517934]
[1765546569737,3.08065634,3246.1,3245.8,0.474]
[1765546570066,4.33824126,3246.2,3245.8,0.474]
[1765546570268,3.08038208,3246.4,3245.8,0.474]
[1765546570463,0.002,3246.5,3245.8,0.9685]
[1765546570464,4.06207665,3246.5,3245.8,0.9685]
[1765546570766,7.1423533,3246.5,3245.8,0.9685]
[1765546570965,0.4928,3246.4,3245.8,0.9685]
[1765546571377,6.6495533,3246.5,3245.8,3.55486226]
[1765546571962,7.1423533,3246.5,3245.8,4.04936226]
[1765546572269,0.241,3245.9,3245.5,0.487]
[1765546572771,0.241,3245.9,3245.5,0.9815]
[1765546574268,0.4746,3245.6,3245.5,0.487]
[1765546574467,0.4746,3245.6,3245.4,3.08122214]
[1765546575043,0.4746,3245.6,3245.5,3.08118933]
[1765546575247,0.1827,3245.9,3245.5,3.55518933]
[1765546575454,0.6755,3246.2,3245.5,3.08118933]
[1765546575659,4.18035153,3246.2,3245.6,0.4945]
[1765546576266,3.50485153,3246.2,3245.6,3.57552026]
[1765546577151,3.08047862,3246.3,3245.6,3.57552026]
[1765546577375,3.56747862,3246.3,3245.7,0.4945]
[1765546579066,6.16095724,3246.3,3245.7,0.4945]
[1765546579273,7.14075724,3246.3,3245.7,0.4945]
[1765546581047,7.9447465,3246.3,3245.7,0.4945]
[1765546581247,0.0307978,3246.2,3245.2,0.487]
[1765546581551,7.4519465,3246.3,3245.2,0.487]
[1765546581964,7.4519465,3246.3,3245.4,3.08123242]
[1765546582159,7.4519465,3246.3,3245.5,3.08117981]
[1765546582374,0.74519465,3246.2,3245.4,3.08123133]
[1765546582975,3.08061982,3246.1,3245.1,6.16313826]
[1765546584051,3.82572823,3246.2,3245.2,5.69979867]
[1765546584376,6.64806716,3246.2,3245.2,5.69979867]
[1765546584745,3.56753358,3246.2,3245.2,5.69979867]
[1765546585787,3.56753358,3246.2,3245.3,6.16275844]
[1765546586387,6.64806716,3246.2,3245.3,6.16275844]
[1765546587086,6.64806716,3246.2,3245.3,4.36015114]
[1765546587283,6.64806716,3246.2,3245.3,5.28531323]
[1765546589560,6.64806716,3246.2,3245.3,8.36669245]
[1765546589891,0.002,3246.5,3245.8,3.08090455]
[1765546590063,0.487,3246.3,3245.8,3.08090455]
[1765546590263,0.487,3246.3,3245.8,4.02118732]
[1765546592861,3.5674475,3246.3,3245.8,4.02118732]
[1765546593061,3.5674475,3246.3,3245.8,0.94028277]
[1765546593280,6.647895,3246.3,3245.8,0.94028277]
[1765546593561,6.647895,3246.3,3245.4,0.487]
[1765546594893,6.647895,3246.3,3245.4,3.56825769]
[1765546595461,6.647895,3246.3,3245.4,3.08125769]
[1765546596495,6.647895,3246.3,3245.7,5.6968442]
[1765546596496,3.0804475,3246.3,3245.7,5.6968442]
[1765546596664,3.08037603,3246.4,3245.7,5.6968442]
[1765546596994,0.002,3246.5,3245.8,0.56968442]
[1765546596995,0.487,3246.3,3245.8,0.56968442]
[1765546597362,3.08227799,3246.5,3245.8,0.56968442]
[1765546597564,0.002,3246.5,3245.8,0.56968442]
[1765546597888,0.002,3246.5,3246.0,5.6968442]
[1765546598479,0.002,3246.5,3246.1,6.16123964]
[1765546598788,0.002,3246.5,3246.3,5.6968442]
[1765546600365,0.002,3246.5,3246.3,8.77720226]
[1765546602595,0.002,3246.5,3246.3,3.08035806]
[1765546603897,0.002,3246.5,3246.3,3.20368524]
[1765546604399,0.002,3246.5,3246.4,5.6968442]
[1765546604704,0.002,3246.5,3246.4,10.2534369]
[1765546607663,0.002,3246.5,3246.4,10.83391219]
[1765546613922,0.002,3246.5,3246.4,11.60914182]
[1765546614274,0.002,3247.2,3246.4,11.60914182]
[1765546614275,0.002,3247.2,3246.5,0.98597929]
[1765546614485,0.002,3247.2,3247.1,5.6968442]
[1765546614681,0.002,3247.2,3247.1,7.33300391]
[1765546615096,0.002,3247.2,3247.1,7.82599629]
[1765546615282,0.002,3247.2,3247.1,7.45627066]
[1765546615481,0.002,3247.2,3247.1,1.75942646]
[1765546616409,0.002,3247.2,3247.1,4.25862226]
[1765546617607,0.002,3247.2,3247.1,0.69295117]
[1765546617806,0.002,3247.2,3247.1,0.12326675]
[1765546618877,0.002,3247.2,3246.6,0.486]
[1765546619179,0.002,3247.2,3246.8,0.12330741]
[1765546621463,0.002,3247.2,3246.2,3.08052295]
[1765546621575,0.002,3247.2,3246.1,5.69274805]
[1765546621908,0.002,3247.2,3246.4,0.12332299]
[1765546622104,1.09622521,3247.1,3246.1,5.69274805]
[1765546622311,0.486,3247.1,3246.2,3.08052282]
[1765546622678,0.486,3247.1,3246.1,5.69274805]
[1765546623080,6.15953186,3247.0,3246.1,5.69274805]
[1765546623476,6.15953186,3247.0,3246.0,0.92495101]
[1765546623689,6.15953186,3247.0,3246.0,4.00565453]
[1765546623875,6.15953186,3247.0,3246.1,3.08061789]
[1765546624076,0.66455319,3246.9,3246.0,4.00562381]
[1765546624573,0.66455319,3246.9,3246.0,0.92495101]
[1765546624793,0.486,3246.8,3246.0,0.92495101]
[1765546625520,6.16010102,3246.7,3246.0,0.92495101]
[1765546625723,6.16010102,3246.7,3246.0,4.00565577]
[1765546626022,6.16010102,3246.7,3246.0,0.92495101]
[1765546626223,6.89116644,3246.7,3246.0,0.92495101]
[1765546626917,6.89116644,3246.7,3246.0,4.00565725]
[1765546629823,6.89116644,3246.7,3246.0,0.92495101]
[1765546630130,3.81111593,3246.7,3246.0,4.00566483]
[1765546636026,3.08005051,3246.7,3246.0,4.00566483]
[1765546636236,3.08005051,3246.7,3246.0,3.08071382]
[1765546636528,6.16010102,3246.7,3245.9,8.77575378]
[1765546636731,6.19089882,3246.7,3246.1,0.92498238]
[1765546637728,6.16010102,3246.7,3246.1,0.92498238]
[1765546638032,6.77611112,3246.7,3246.1,0.92498238]
[1765546638405,0.0307978,3246.6,3246.1,0.92498238]
[1765546638721,6.77611112,3246.7,3246.1,0.92498238]
[1765546639610,12.93621214,3246.7,3246.1,0.92498238]
[1765546639810,12.93621214,3246.7,3245.2,3.08141992]
[1765546639811,5.69497905,3246.4,3245.2,3.08141992]
[1765546640012,0.486,3246.3,3245.3,3.08135729]
[1765546640243,0.486,3246.3,3244.9,6.18097905]
[1765546640244,9.24157476,3246.2,3245.0,0.92521345]
[1765546640545,6.27545434,3246.1,3244.9,0.486]
[1765546640712,6.27545434,3246.1,3244.7,0.92631904]
[1765546640713,0.58047529,3246.1,3244.7,0.92631904]
[1765546640917,1.07330708,3246.0,3244.7,3.08288615]
[1765546642144,0.4709,3245.9,3244.8,0.4928]
[1765546642457,9.72871365,3245.8,3244.8,0.6803]
[1765546643121,0.4709,3245.7,3244.8,0.6803]
[1765546643320,1.0869101,3245.7,3244.8,0.6803]
[1765546643746,6.6330888,3245.6,3244.8,0.6803]
[1765546644143,6.6330888,3245.6,3244.8,3.76212185]
[1765546644441,6.6330888,3245.6,3244.9,0.4928]
[1765546644645,3.5519944,3245.6,3244.9,6.18777905]
[1765546644828,0.486,3245.5,3245.0,0.4928]
[1765546646149,3.0810944,3245.6,3245.0,1.43851009]
[1765546646351,3.0810944,3245.6,3245.2,5.69497905]
[1765546646852,3.0810944,3245.6,3245.3,0.4928]
[1765546647017,0.4709,3246.1,3245.3,0.4928]
[1765546647220,0.486,3246.0,3245.3,0.4928]
[1765546649654,3.08080963,3245.9,3245.3,3.57415133]
[1765546650057,3.08080963,3245.9,3245.4,0.4928]
[1765546650259,3.56680963,3245.9,3245.4,0.4928]
[1765546650966,6.64761926,3245.9,3245.4,0.4928]
[1765546651166,4.03770963,3245.9,3245.4,0.4928]
[1765546651657,3.08080963,3245.9,3245.4,0.4928]
[1765546652172,6.16127204,3246.1,3245.4,0.4928]
[1765546652338,0.486,3246.0,3245.4,0.4928]
[1765546652723,3.08063602,3246.1,3245.6,5.69497905]
[1765546652944,3.56663602,3246.1,3245.6,5.69497905]
[1765546653145,3.56663602,3246.1,3245.7,0.4928]
[1765546653832,3.08063602,3246.1,3245.7,0.4928]
[1765546654150,3.08054924,3246.2,3245.4,9.4519611]
[1765546654350,6.16109848,3246.2,3245.5,1.74613008]
[1765546654534,6.16109848,3246.2,3245.6,0.4928]
[1765546658429,0.4709,3246.1,3245.5,1.25333008]
[1765546660334,3.08071472,3246.0,3245.5,1.25333008]
[1765546660741,0.4709,3245.9,3245.5,1.25333008]
[1765546660941,0.598,3245.9,3245.5,1.25333008]
[1765546661259,0.2664,3245.6,3245.3,3.08137658]
[1765546661625,0.2664,3245.6,3245.3,3.57417658]
[1765546661856,0.2664,3245.6,3245.3,0.4928]
[1765546662060,0.2664,3245.6,3245.1,1.07327529]
[1765546662562,0.2664,3245.6,3245.2,3.57427416]
[1765546663162,3.34749995,3245.6,3245.2,0.4928]
[1765546665169,0.2664,3245.6,3245.2,0.4928]
[1765546665465,3.34751298,3245.6,3245.2,0.4928]
[1765546665654,0.2664,3245.6,3245.2,0.4928]
[1765546666449,0.2664,3245.6,3245.2,3.57427226]
[1765546667782,0.2664,3245.6,3245.2,0.4928]
[1765546667938,0.2664,3245.6,3245.3,0.4928]
[1765546668449,3.34753428,3245.6,3245.3,0.4928]
[1765546669464,0.2664,3245.6,3245.3,0.4928]
[1765546669856,0.462,3246.2,3245.5,0.4736]
[1765546670166,0.19,3246.5,3245.6,6.17050859]
[1765546670167,0.486,3246.1,3245.6,6.17050859]
[1765546670471,0.486,3246.1,3245.7,0.4977]
[1765546671279,0.4802,3245.8,3245.1,0.9837]
[1765546671501,0.1945,3245.8,3245.2,0.66806086]
[1765546671779,0.6565,3245.8,3245.2,0.66806086]
[1765546672074,0.6565,3245.8,3245.2,1.16576086]
[1765546672285,0.6565,3245.8,3245.3,0.4977]
[1765546673287,3.07976593,3247.0,3245.8,0.58047529]
[1765546673567,6.62142304,3247.1,3245.9,2.20438925]
[1765546673758,0.462,3247.0,3245.9,1.54007529]
[1765546673959,0.5177978,3246.9,3245.9,0.4736]
[1765546674168,0.487,3246.9,3245.9,0.4736]
[1765546674350,0.61802731,3246.8,3245.9,0.4736]
[1765546674544,0.61802731,3246.8,3245.7,5.69690859]
[1765546674738,0.462,3246.7,3245.7,5.69690859]
[1765546675067,0.462,3246.7,3245.7,6.19460859]
[1765546675640,6.19108856,3246.6,3245.4,7.56738388]
[1765546675942,6.19108856,3246.6,3245.1,0.487]
[1765546675943,1.73278415,3246.5,3245.1,0.487]
[1765546676139,0.0307978,3246.4,3245.1,0.487]
[1765546676355,0.462,3246.3,3245.2,3.5791035]
[1765546676556,0.0307978,3246.2,3245.2,3.5791035]
[1765546676764,0.487,3246.1,3245.2,0.4977]
[1765546676939,0.487,3246.1,3244.8,1.11269348]
[1765546676940,0.1994,3245.3,3244.8,5.88440859]
[1765546677141,0.002,3245.2,3244.8,0.1875]
[1765546677340,0.002,3245.2,3244.8,8.9662547]
[1765546677639,0.5755,3245.5,3245.1,0.4736]
[1765546678291,3.65670495,3245.5,3245.1,0.4736]
[1765546679379,3.08109927,3245.6,3245.1,0.4736]
[1765546679579,0.487,3245.5,3245.1,0.9713]
[1765546680079,0.487,3245.7,3245.2,0.4977]
[1765546680476,0.949,3245.7,3245.2,0.4977]
[1765546680964,0.949,3245.7,3245.1,6.10220876]
[1765546681167,0.949,3245.7,3245.1,3.48685359]
[1765546681896,3.0810944,3245.6,3245.1,3.48685359]
[1765546682276,3.0810944,3245.6,3245.1,3.98455359]
[1765546682597,4.03004242,3245.7,3245.1,3.98455359]
[1765546682763,3.08104242,3245.7,3245.1,3.98454583]
[1765546682969,0.487,3245.6,3245.2,0.39845458]
[1765546683396,0.487,3245.7,3245.2,0.89615458]
[1765546683695,0.487,3245.7,3245.5,0.4736]
[1765546683894,0.487,3245.7,3245.6,0.4736]
[1765546684065,3.56800066,3245.7,3245.3,0.4977]
[1765546684598,0.487,3245.7,3245.3,0.4977]
[1765546685601,3.56803376,3245.7,3245.3,0.4977]
[1765546685798,3.56803376,3245.7,3245.2,0.39845458]
[1765546686002,4.03003376,3245.7,3245.2,0.39845458]
[1765546686665,4.03003376,3245.7,3245.2,0.89615458]
[1765546686893,0.487,3245.7,3245.2,3.97762448]
[1765546687099,0.487,3245.7,3245.3,0.4977]
[1765546687301,3.56800748,3245.7,3245.3,0.4977]
[1765546688505,3.5680038,3245.7,3245.3,0.4977]
[1765546690472,4.0300038,3245.7,3245.2,0.39845458]
[1765546690670,4.0300038,3245.7,3245.2,0.89615458]
[1765546692110,0.462,3245.6,3244.9,3.57944454]
[1765546692607,0.462,3245.6,3245.0,0.4977]
[1765546694007,3.54314714,3245.6,3245.0,3.57930773]
[1765546694480,0.487,3245.7,3245.1,0.4977]
[1765546695582,3.08101866,3245.7,3245.1,0.4977]
[1765546695782,3.56801866,3245.7,3245.1,1.16379718]
[1765546695982,3.56801866,3245.7,3245.2,0.4977]
[1765546696682,0.487,3245.7,3245.2,3.57916923]
[1765546697083,3.08095133,3245.8,3245.6,0.4736]
[1765546697279,3.56789328,3245.9,3245.7,0.4514]
[1765546697713,3.56789328,3245.9,3245.2,8.78009012]
[1765546697714,0.4698,3245.8,3245.4,0.494]
[1765546698312,3.55075208,3245.8,3245.4,0.494]
[1765546699902,0.4698,3245.8,3245.4,3.57527017]
[1765546700211,3.08033514,3246.4,3245.7,0.4698]
[1765546700420,0.487,3246.3,3245.8,0.4698]
[1765546700715,3.53753514,3246.4,3245.8,0.4698]
[1765546700930,0.487,3246.2,3245.8,0.4698]
[1765546701092,0.487,3246.2,3245.8,0.87009302]
[1765546701293,0.9442,3246.2,3245.8,0.87009302]
[1765546701917,0.487,3246.2,3245.8,0.4698]
[1765546702114,0.4572,3246.1,3245.8,0.4698]
[1765546702522,3.08071472,3246.0,3245.6,0.4522]
[1765546703226,0.2149,3245.7,3245.2,3.53363118]
[1765546703391,0.2149,3245.7,3245.3,3.08131374]
[1765546703586,0.2149,3245.7,3245.4,0.30813137]
[1765546703794,3.53551472,3246.0,3245.4,3.841599]
[1765546704315,3.53551472,3246.0,3245.4,0.76033137]
[1765546704494,0.4609,3245.5,3245.2,3.0814212]
[1765546704702,0.4609,3245.5,3245.1,3.74760919]
[1765546704919,0.4609,3245.5,3245.2,0.4522]
[1765546705292,0.4609,3245.5,3245.1,3.74765272]
[1765546705523,0.4609,3245.5,3245.1,4.19985272]
[1765546705925,0.4609,3245.5,3245.2,0.87218527]
[1765546707221,0.4609,3245.5,3245.1,0.66609718]
[1765546707394,0.4609,3245.5,3245.1,1.11829718]
[1765546707790,3.54209267,3245.5,3245.1,1.11829718]
[1765546708527,3.54209267,3245.5,3245.2,0.92523057]
[1765546708730,0.4609,3245.5,3245.2,0.92523057]
[1765546709032,0.4609,3245.5,3245.2,1.43774516]
[1765546709224,0.4609,3245.5,3245.2,1.88994516]
[1765546710796,0.4609,3245.5,3245.2,0.96471459]
[1765546711298,0.4609,3245.5,3245.3,0.92523057]
[1765546711925,0.487,3245.8,3245.3,0.92523057]
[1765546712235,0.487,3245.8,3245.4,0.922]
[1765546712800,0.487,3245.8,3245.4,4.00324931]
[1765546713002,3.56791709,3245.8,3245.4,1.84723057]
[1765546713301,0.487,3245.8,3245.4,1.84723057]
[1765546713633,3.08024025,3246.5,3245.7,0.4698]
[1765546713836,1.27060403,3246.4,3245.8,0.4698]
[1765546714205,0.4572,3246.3,3245.8,0.4698]
[1765546714432,0.2149,3245.9,3245.4,3.08126214]
[1765546714603,0.0021,3245.8,3245.4,3.08126214]
[1765546714805,0.0021,3245.8,3245.5,0.81340403]
[1765546715105,0.0021,3245.8,3245.5,1.24809065]
[1765546715330,0.4593,3245.8,3245.5,1.24809065]
[1765546715635,0.4593,3245.8,3245.5,0.43468662]
[1765546716512,0.4593,3245.8,3245.6,0.9251193]
[1765546716513,0.0021,3245.8,3245.6,0.9251193]
[1765546717062,0.0021,3245.8,3245.6,4.00621192]
[1765546717220,0.0021,3245.8,3245.7,0.48930985]
[1765546717423,0.9442,3246.0,3245.7,0.48930985]
[1765546717622,0.487,3246.0,3245.7,0.48930985]
[1765546718230,3.08026369,3246.5,3245.7,1.86662915]
[1765546718428,0.487,3246.4,3245.9,0.4698]
[1765546719078,4.02460884,3246.4,3245.9,4.00279184]
[1765546719243,0.487,3246.4,3245.9,4.85261014]
[1765546719433,0.487,3246.4,3246.0,0.4522]
[1765546719742,0.487,3246.3,3246.0,0.4522]
[1765546720141,3.72114746,3246.6,3246.2,0.4698]
[1765546720343,0.487,3246.5,3246.2,0.4698]
[1765546720516,0.487,3246.5,3246.2,0.922]
[1765546722156,3.56705051,3246.7,3246.2,0.4698]
[1765546722540,0.4572,3246.6,3246.2,0.4698]
[1765546723345,0.4572,3246.6,3246.2,0.922]
[1765546723518,3.08005051,3246.7,3246.2,0.922]
[1765546723719,0.487,3246.8,3246.6,0.4698]
[1765546724345,0.6721,3246.7,3245.7,0.48930985]
[1765546724645,0.0021,3246.4,3245.9,0.4522]
[1765546725336,0.4593,3246.4,3245.9,0.4522]
[1765546725819,0.4593,3246.4,3245.8,4.0058999]
[1765546726025,0.4593,3246.4,3245.8,4.73456804]
[1765546726220,0.4593,3246.4,3245.9,3.08078468]
[1765546726442,0.9463,3246.4,3245.9,3.08078468]
[1765546726616,0.9463,3246.4,3245.9,3.53298468]
[1765546727944,0.4891,3246.4,3246.0,0.4522]
[1765546728118,0.4891,3246.4,3246.0,0.87836528]
[1765546728319,0.4891,3246.4,3246.1,0.4522]
[1765546729134,0.487,3246.4,3246.3,0.4698]
[1765546731630,0.9769,3246.4,3246.1,0.4522]
[1765546731829,3.57023514,3246.4,3246.0,0.42616528]
[1765546732051,0.6724,3246.4,3246.1,0.44319115]
[1765546732249,3.75275541,3246.4,3246.1,0.44319115]
[1765546735156,3.75275541,3246.4,3245.9,4.48394621]
[1765546735157,0.0018,3246.2,3245.9,0.92499379]
[1765546735459,0.2073,3246.0,3245.6,3.55920578]
[1765546735660,0.2073,3246.0,3245.6,0.4782]
[1765546735840,6.16071082,3246.4,3245.9,0.4811]
[1765546736044,0.66477108,3246.3,3245.9,0.4811]
[1765546736352,0.4631,3246.3,3245.9,0.4811]
[1765546738136,3.08052492,3246.2,3245.9,0.4811]
[1765546738553,3.54362492,3246.2,3245.9,0.4811]
[1765546739057,3.08046754,3246.3,3245.9,0.9593]
[1765546739466,3.56626723,3246.5,3246.2,0.4811]
[1765546740661,0.486,3246.5,3246.2,0.4811]
[1765546740867,0.002,3247.2,3246.4,6.17670936]
[1765546741065,6.64536837,3247.1,3246.5,0.9593]
[1765546741543,7.10846837,3247.1,3246.5,0.9593]
[1765546741743,6.64536837,3247.1,3246.5,0.4811]
[1765546741945,0.4631,3247.0,3246.5,0.4811]
[1765546742162,0.4631,3247.0,3246.3,0.92489968]
[1765546742365,0.1186,3246.9,3246.4,0.48661402]
[1765546742740,3.661645,3246.9,3246.4,0.48661402]
[1765546742945,3.661645,3246.9,3246.4,0.96481402]
[1765546743654,0.5817,3246.9,3246.5,0.4782]
[1765546743859,3.07980807,3247.0,3246.6,0.40451271]
[1765546744058,3.54290807,3247.0,3246.6,0.40451271]
[1765546744240,3.54290807,3247.0,3246.5,0.4782]
[1765546745159,4.02890807,3247.0,3246.5,0.4782]
[1765546745767,0.4631,3246.9,3246.4,0.48661402]
[1765546746238,0.4631,3246.9,3246.4,0.96481402]
[1765546747152,0.4631,3246.9,3246.4,0.48661402]
[1765546747153,0.2736,3246.5,3246.4,0.48661402]
[1765546747467,3.07995564,3246.8,3246.3,0.92489968]
[1765546747633,3.54305564,3246.8,3246.4,0.4811]
[1765546748534,0.4631,3246.7,3246.4,0.4811]
[1765546748760,0.4631,3246.7,3246.3,0.92489968]
[1765546749365,3.08014538,3246.6,3246.3,0.92489968]
[1765546749744,3.54319794,3246.7,3246.3,0.92489968]
[1765546750137,3.08003802,3246.8,3246.4,0.43879465]
[1765546750565,3.07989649,3246.9,3246.7,0.4811]
[1765546750772,3.07989649,3246.9,3246.8,0.4811]
[1765546751168,3.07989649,3246.9,3246.5,0.4782]
[1765546751467,3.54299649,3246.9,3246.5,0.4782]
[1765546751672,0.002,3247.2,3246.8,0.4811]
[1765546751859,0.486,3247.1,3246.9,0.4811]
[1765546752060,0.488,3247.2,3246.9,0.4811]
[1765546752262,0.488,3247.2,3247.0,0.4811]
[1765546752572,0.002,3247.2,3247.0,0.4811]
[1765546752769,0.488,3247.2,3247.0,0.4811]
[1765546752973,0.002,3247.2,3247.1,0.4811]
[1765546753677,0.002,3247.2,3247.1,0.9593]
[1765546754376,0.002,3247.2,3247.1,0.4811]
[1765546755452,0.002,3247.2,3246.9,6.17245715]
[1765546755671,0.002,3247.2,3246.9,0.4782]
[1765546756345,0.002,3247.2,3246.7,0.1965]
[1765546756547,0.002,3247.2,3246.7,1.64715753]
[1765546757882,0.002,3247.2,3246.7,4.24899791]
[1765546758048,0.002,3247.2,3246.8,0.4782]
[1765546758779,0.4846978,3247.2,3246.7,1.16895753]
[1765546758947,0.4539,3247.2,3246.7,1.16895753]
[1765546759388,0.4846978,3247.2,3246.7,1.16895753]
[1765546759682,0.4539,3247.2,3246.7,1.16895753]
[1765546759998,3.07967109,3247.1,3246.7,0.1965]
[1765546760195,0.4578,3246.8,3246.7,0.1965]
[1765546760423,0.6474,3246.8,3246.3,3.08040721]
[1765546760682,0.2135,3246.7,3246.5,0.75361515]
[1765546760851,0.4554,3246.3,3245.9,3.08076786]
[1765546761192,0.4554,3246.3,3246.2,0.75361515]
[1765546761979,3.29608518,3246.6,3246.2,1.22761515]
[1765546764886,0.2159,3246.6,3246.2,1.22761515]
[1765546765091,3.08009804,3246.7,3246.2,1.68531515]
[1765546765389,3.08009804,3246.7,3246.3,0.4577]
[1765546767089,3.74619549,3246.8,3246.3,0.4577]
[1765546768277,0.486,3246.7,3246.3,3.53812899]
[1765546768688,0.486,3246.7,3246.4,0.4577]
[1765546769789,0.486,3246.7,3246.6,0.474]
[1765546770287,3.07996549,3246.8,3246.6,0.474]
[1765546770501,3.55637824,3247.0,3246.6,0.474]
[1765546770502,3.56590704,3246.9,3246.6,0.9317]
[1765546770799,0.1941,3246.7,3246.4,0.92489968]
[1765546771171,0.0047,3246.5,3246.0,3.53835426]
[1765546771394,0.0047,3246.5,3246.1,0.92496527]
[1765546771574,0.0047,3246.5,3246.1,1.38266527]
[1765546771773,0.0047,3246.5,3246.2,0.4577]
[1765546771971,0.4766,3246.7,3246.2,0.4577]
[1765546771972,3.55669766,3246.7,3246.2,0.4577]
[1765546772474,3.55669766,3246.7,3246.2,1.38266812]
[1765546773090,3.08001034,3246.8,3246.2,1.38266812]
[1765546773297,3.08001034,3246.8,3246.3,0.4577]
[1765546773487,3.08001034,3246.8,3246.3,1.38266527]
[1765546773687,3.08001034,3246.8,3246.4,0.4577]
[1765546776500,0.002,3247.2,3246.4,0.4577]
[1765546776706,3.07967109,3247.1,3246.8,0.474]
[1765546776871,3.7436584,3247.1,3246.8,0.474]
[1765546777792,0.66398731,3247.1,3246.8,0.474]